Cogmind - Beta 12 *** ADVENTURER MODE // 2023.07.10 @ 23:19:14 Player: Scott Result: Destroyed by G-47 Trooper with Particle Gun Performance ------------- Evolutions (2) 1000 Regions Visited (4) 800 Robots Destroyed (22) 110 Value Destroyed (375) 375 Prototype IDs (3) 60 Alien Tech Used (0) 0 Bonus (400) 400 TOTAL SCORE: 2745 Bonus ------- Pacifist 200 Entered Garrisons 200 Cogmind --------- Core Integrity 0/550 Matter 155/300 Energy 55/100 System Corruption 0% Temperature Cool (18) Movement Rolling (95) Ox1 Location -8/Garrison Parts ------- > --- POWER (1) -------- (None) > --- PROPULSION (4) --- Wheel > --- UTILITY (3) ------ Medium Storage Unit Targeting Computer > --- WEAPON (3) ------- Light Cannon Improved Datajack > --- INVENTORY (10) --- Small Storage Unit Small Laser Beam Rifle Peak State ------------ > --- POWER ------------ Improved Ion Engine > --- PROPULSION ------- Aluminum Leg Compact Wheel Compact Wheel > --- UTILITY ---------- Medium Storage Unit Targeting Computer > --- WEAPON ----------- Beam Rifle Improved Medium Laser Improved Light Cannon > --- INVENTORY -------- Wheel Small Storage Unit Medium Laser Small Laser Light Cannon Improved Light Cannon Improved Datajack [Rating: 15] Favorites ----------- Power Ion Engine Engine Ion Engine Propulsion Aluminum Leg Leg Aluminum Leg Wheel Compact Wheel Utility Medium Storage Unit Storage Medium Storage Unit Processor Targeting Computer Weapon Medium Laser Energy Gun Medium Laser Energy Cannon Light EM Pulse Cannon Ballistic Cannon Improved Light Cannon Special Melee Weapon Improved Datajack Build | -11 -10 -9 -8 -8 ------- Run | Jun Mat Mat Mat Gar Slots Evolved 4 | . . 2 2 . Power . | . . . . . Propulsion 2 | . . 1 1 . Utility 1 | . . . 1 . Weapon 1 | . . 1 . . Parts Attached 24 | 8 3 3 3 7 Power 3 | 2 . 1 . . Engine 3 | 2 . 1 . . Core . | . . . . . Reactor . | . . . . . Propulsion 6 | 3 . . . 3 Treads . | . . . . . Leg 2 | 2 . . . . Wheel 4 | 1 . . . 3 Hover . | . . . . . Flight . | . . . . . Utility 4 | 2 1 1 . . Device . | . . . . . Storage 3 | 2 1 . . . Processor 1 | . . 1 . . Hackware . | . . . . . Protection . | . . . . . Artifact . | . . . . . Weapon 11 | 1 2 1 3 4 Energy Gun 6 | 1 2 . 2 1 Energy Cannon 1 | . . 1 . . Ballistic Gun . | . . . . . Ballistic Cannon 3 | . . . 1 2 Launcher . | . . . . . Special Weapon . | . . . . . Impact Weapon . | . . . . . Slashing Weapon . | . . . . . Piercing Weapon . | . . . . . Special Melee Weapon 1 | . . . . 1 Unidentified Prototypes 1 | . . . 1 . Parts Lost 11 | . . 2 . 9 Power 1 | . . . . 1 Propulsion 4 | . . . . 4 Utility . | . . . . . Weapon 6 | . . 2 . 4 Highest Loss Streak 9 | . . 2 . 9 To Critical Strikes . | . . . . . Average Slot Usage (%) 81 | . 82 85 72 63 Engine 10 | . 14 11 9 6 Leg 20 | . 28 22 18 12 Storage 10 | . 14 11 9 9 Processor 8 | . . 10 9 9 Energy Gun 20 | . 25 21 18 14 Energy Cannon 6 | . . 10 . . Ballistic Cannon 1 | . . . 9 9 Naked Turns . | . . . . . Heaviest Build 28 | 11 19 25 27 28 Greatest Support 32 | 20 20 20 20 32 Greatest Overweight (x) 4 | . . 1 1 4 Average Overweight (x) . | . . . 1 1 Largest Inventory Capacity 10 | 8 10 10 10 10 Average Capacity 9 | 5 9 10 10 10 Most Carried 10 | 5 5 10 9 9 Average Carried 8 | 4 4 9 8 8 Final Capacity 10 | 8 10 10 10 10 Final Carried 10 | 4 5 10 9 3 Class Distribution -------------------- 80% | Gunner 19% | Mutant Dominant Class ---------------- Mutant | -10/Materials Gunner | -9/Materials Gunner | -8/Materials Gunner | -8/Garrison Resources | -11 -10 -9 -8 -8 ----------- Run | Jun Mat Mat Mat Gar Matter Collected 340 | 197 . 143 . . Remotely . | . . . . . Salvage Created 632 | . . 494 . 138 Parts 49 | . . 41 . 8 Haulers Intercepted 2 | . . 2 . . Recyclers Shooed 1 | . . 1 . . Parts Field Recycled . | . . . . . Retrieved Matter . | . . . . . Parts Self-Destructed . | . . . . . Prevented . | . . . . . Kills | -11 -10 -9 -8 -8 ------- Run | Jun Mat Mat Mat Gar Combat Hostiles Destroyed 14 | . . 9 . 5 Guns 8 | . . 5 . 3 Cannons 6 | . . 4 . 2 Classes Destroyed 8 | . . 8 . . Worker 1 | . . 1 . . Hauler 2 | . . 2 . . Recycler 1 | . . 1 . . Operator 1 | . . 1 . . Watcher 3 | . . 3 . . Swarmer 9 | . . 6 . 3 Grunt 4 | . . 2 . 2 Sentry 1 | . . 1 . . Best Kill Streak 7 | . . 7 . 4 Combat Bots Only 5 | . . 5 . 4 Max Kills in Single Turn 2 | . . 2 . 1 Gunslinging . | . . . . . Exploded . | . . . . . Melee . | . . . . . Uniques/NPCs Destroyed . | . . . . . Combat | -11 -10 -9 -8 -8 -------- Run | Jun Mat Mat Mat Gar Damage Taken 1624 | . . 276 . 1348 Core 572 | . . 22 . 550 Absorbed by Shields . | . . . . . Core Remaining (%) 98 | 100 100 94 . . Volleys Fired 35 | . . 23 . 12 Largest 3 | . . 3 . 3 Hottest 156 | . . 156 . 151 Shots Fired 93 | . . 63 . 30 Gun 61 | . . 43 . 18 Cannon 32 | . . 20 . 12 Launcher . | . . . . . Special . | . . . . . Kinetic 12 | . . . . 12 Thermal 61 | . . 43 . 18 Explosive . | . . . . . Electromagnetic 20 | . . 20 . . Robot Hit Streak 17 | . . 14 . 17 Robot Miss Streak 4 | . . 3 . 4 Penetration Max . | . . . . . Secondary Targets . | . . . . . Shots Hit Robots 70 | . . 42 . 28 Core Hits 33 | . . 22 . 11 Critical Kills . | . . . . . Critical Parts Destroyed . | . . . . . Critical Strikes 7 | . . 7 . . Burn 6 | . . 6 . . Corrupt 1 | . . 1 . . Melee Attacks 3 | . . . . 3 Impact . | . . . . . Slashing . | . . . . . Piercing . | . . . . . Sneak Attacks . | . . . . . Combat Hostiles . | . . . . . Follow-up Attacks . | . . . . . Damage Inflicted 1183 | . . 732 . 451 Guns 642 | . . 405 . 237 Cannons 541 | . . 327 . 214 Explosions . | . . . . . Melee . | . . . . . Ramming . | . . . . . Kinetic 214 | . . . . 214 Thermal 642 | . . 405 . 237 Explosive . | . . . . . Electromagnetic 327 | . . 327 . . Impact . | . . . . . Slashing . | . . . . . Piercing . | . . . . . Highest Corruption . | . . . . . Average Corruption . | . . . . . Corruption Purged . | . . . . . Corruption Blocked . | . . . . . Overload Shots . | . . . . . Overflow Damage . | . . . . . Projectiles . | . . . . . Explosions . | . . . . . Melee . | . . . . . Knockbacks 3 | . . . . 3 Impact . | . . . . . Kinetic 3 | . . . . 3 Secondary . | . . . . . Self-Inflicted Damage . | . . . . . Shots . | . . . . . Rammed . | . . . . . Targets Rammed . | . . . . . Kicked . | . . . . . Crushed . | . . . . . Highest Temperature 584 | . . 554 . 584 Average Temperature 215 | . . 185 . 268 Received Heat Transfer 1008 | . . 90 . 918 Effects 20 | . . 8 . 12 Shutdowns 3 | . . 2 . 1 Energy Bleed 3 | . . 1 . 2 Interference 7 | . . 3 . 4 Matter Decay 1 | . . . . 1 Short Circuit 3 | . . 1 . 2 Damage (minor) 1 | . . 1 . . Damage (core) 2 | . . . . 2 Siege Activations . | . . . . . Robots Corrupted . | . . . . . Combat Hostiles . | . . . . . Parts Fried . | . . . . . Impact Corruptions . | . . . . . Robots Melted . | . . . . . Combat Hostiles . | . . . . . Parts Melted 5 | . . 5 . . Heat Transferred 2183 | . . 1628 . 555 Parts Sabotaged . | . . . . . Parts Stolen . | . . . . . Parts Stripped . | . . . . . Power Chain Reactions . | . . . . . Missiles Intercepted . | . . . . . Alert | -11 -10 -9 -8 -8 ------- Run | Jun Mat Mat Mat Gar Peak Influence 309 | . 18 309 107 150 Initial 107 | . . 6 107 60 Average 52 | . 1 53 107 82 Maximum Alert Level 1 | . . 1 . . Low Security (%) 95 | 100 100 93 100 100 Level 1 4 | . . 6 . . Level 2 . | . . . . . Level 3 . | . . . . . Level 4 . | . . . . . Level 5 . | . . . . . High Security . | . . . . . Max Security . | . . . . . Squads Dispatched . | . . . . . Investigation . | . . . . . Extermination . | . . . . . Reinforcement . | . . . . . Assault . | . . . . . Garrison . | . . . . . Intercept . | . . . . . Searches Triggered . | . . . . . Construction Impeded . | . . . . . Haulers Reinforced . | . . . . . Active Scanning Responses . | . . . . . Cargo Convoy Interrupts . | . . . . . Stealth | -11 -10 -9 -8 -8 --------- Run | Jun Mat Mat Mat Gar Distress Signals 3 | . 1 2 . . Communications Jammed . | . . . . . Distress Signals . | . . . . . Times Spotted 37 | . 2 22 . 13 Peak Tracking Total 10 | . 3 8 . 10 Tactical Retreats 3 | . . 3 . . Traps | -11 -10 -9 -8 -8 ------- Run | Jun Mat Mat Mat Gar Traps Triggered 1 | . . . . 1 Indirectly . | . . . . . Trap Hack Attempts . | . . . . . Triggered . | . . . . . Disarmed . | . . . . . Reprogrammed . | . . . . . Reused . | . . . . . Traps Extracted . | . . . . . Installed . | . . . . . Triggered . | . . . . . Machines | -11 -10 -9 -8 -8 ---------- Run | Jun Mat Mat Mat Gar Machines Disabled . | . . . . . Max in Single Turn . | . . . . . Machines Repaired . | . . . . . Machines Sabotaged . | . . . . . Overloaded Fab Kills . | . . . . . Hacking | -11 -10 -9 -8 -8 --------- Run | Jun Mat Mat Mat Gar Machines Accessed 6 | . 2 3 1 . Terminals 5 | . 2 3 . . Fabricators . | . . . . . Repair Stations . | . . . . . Recycling Units . | . . . . . Scanalyzers . | . . . . . Garrison Access 1 | . . . 1 . Total Hacks 10 | . 3 6 1 . Successful 7 | . 1 5 1 . Failed 3 | . 2 1 . . Catastrophic . | . . . . . Database Lockouts . | . . . . . Manual . | . . . . . Terminals 9 | . 3 6 . . Fabricators . | . . . . . Repair Stations . | . . . . . Recycling Units . | . . . . . Scanalyzers . | . . . . . Garrison Access 1 | . . . 1 . Terminal Hacks 6 | . 1 5 . . Prototype ID Bank 1 | . . 1 . . Branch Access Points 1 | . . 1 . . Unreport Threat 2 | . . 2 . . Locate Traps 2 | . 1 1 . . Fabricator Hacks . | . . . . . Repair Station Hacks . | . . . . . Recycling Unit Hacks . | . . . . . Scanalyzer . | . . . . . Garrison Access Hacks 1 | . . . 1 . Unlock Access 1 | . . . 1 . Unauthorized Hacks . | . . . . . Terminals . | . . . . . Fabricators . | . . . . . Repair Stations . | . . . . . Recycling Units . | . . . . . Scanalyzers . | . . . . . Garrison Access . | . . . . . Data Cores Recovered 1 | . . 1 . . Used 1 | . . 1 . . Hacking Detections 3 | . 1 1 1 . Full Trace Events . | . . . . . Feedback Events . | . . . . . Feedback Blocked . | . . . . . Robot Schematics Acquired . | . . . . . Robots Built . | . . . . . Authchips . | . . . . . Time . | . . . . . Total Robot Build Rating . | . . . . . Part Schematics Acquired . | . . . . . Parts Built . | . . . . . Authchips . | . . . . . Time . | . . . . . Total Part Build Rating . | . . . . . Parts Repaired . | . . . . . Time . | . . . . . Parts Recycled . | . . . . . Recycled Matter . | . . . . . Retrieved Matter . | . . . . . Retrieved Components . | . . . . . Parts Scanalyzed . | . . . . . Part Schematics Acquired . | . . . . . Parts Damaged . | . . . . . Bothacking | -11 -10 -9 -8 -8 ------------ Run | Jun Mat Mat Mat Gar Used RIF Installer . | . . . . . Robots Hacked . | . . . . . Non-combat . | . . . . . Combat . | . . . . . Robot Hacks Applied . | . . . . . Relay Couplers Released . | . . . . . Fabnet Peak Effective % . | . . . . . Robots Rewired . | . . . . . Allies Hacked . | . . . . . Hacks Repelled . | . . . . . Allies | -11 -10 -9 -8 -8 -------- Run | Jun Mat Mat Mat Gar Total Allies . | . . . . . Largest Group . | . . . . . Highest-Rated Group . | . . . . . Highest-Rated Ally . | . . . . . Total Orders . | . . . . . Ally Attacks . | . . . . . Total Damage . | . . . . . Kills . | . . . . . Allies Corrupted . | . . . . . Allies Melted . | . . . . . Intel | -11 -10 -9 -8 -8 ------- Run | Jun Mat Mat Mat Gar Robot Analysis Total . | . . . . . Derelict Logs Recovered . | . . . . . Drone Launches . | . . . . . Drone Recoveries . | . . . . . Exploration | -11 -10 -9 -8 -8 ------------- Run | Jun Mat Mat Mat Gar Turns Passed 1178 | 54 107 778 28 211 Spaces Moved 599 | 39 85 369 12 94 Core 21 | 11 . . . 10 Treads . | . . . . . Legs 554 | 26 85 369 12 62 Wheels 24 | 2 . . . 22 Hover . | . . . . . Flight . | . . . . . Fastest Speed 50 | 50 120 120 190 100 Average Speed 167 | 99 120 183 190 173 Slowest Speed 260 | 120 120 190 190 260 Overloaded Moves . | . . . . . Propulsion Burnouts . | . . . . . Robots Hopped . | . . . . . Cave-ins Triggered . | . . . . . Exploration Rate (%) 17 | 4 26 34 2 22 Regions Visited 4 Branch Regions . Pre-discovered Areas . | . . . . . Known Exits Taken 1 | . . . 1 . Unknown Exits Taken 3 | 1 1 1 . . Scrap Searched . | . . . . . Spaces Dug . | . . . . . Terrain Destroyed . | . . . . . Melee . | . . . . . Projectile . | . . . . . AOE . | . . . . . Terrain Rammed . | . . . . . Walls Destroyed . | . . . . . Machines Disabled . | . . . . . Actions | -11 -10 -9 -8 -8 --------- Run | Jun Mat Mat Mat Gar Total 699 | 53 89 422 17 118 Wait 18 | . . 16 . 2 Move 596 | 38 84 368 12 94 Hop . | . . . . . Pick Up 17 | 5 2 9 1 . Fast Attach 4 | 4 . . . . Attach 14 | 2 1 2 3 6 Detach 2 | 1 . . 1 . Swap 6 | 2 2 1 . 1 Drop 4 | 1 . 3 . . Fire 35 | . . 23 . 12 Melee 3 | . . . . 3 Ram . | . . . . . Kick . | . . . . . Crush . | . . . . . Escape Stasis . | . . . . . Rewire . | . . . . . Trap . | . . . . . Miscellaneous . | . . . . . Route ------- -11/Junkyard -10/Materials -9/Materials (discovered 3 exits: *Mat / Min / Sto) -8/Materials -8/Garrison History --------- Turn | Location | Event 15 | -11/Junkyard | Discovered new exit (range 15) 55 | -11/Junkyard | Entered Materials 137 | -10/Materials | Discovered new exit (range 5) 162 | -10/Materials | Entered another Materials area 162 | -9/Materials | Evolved 2 slots: Propulsion x1, Weapon x1 429 | -9/Materials | Identified exit to Mines 429 | -9/Materials | Identified exit to Storage 499 | -9/Materials | Build established: Gunner 914 | -9/Materials | Discovered new exit (range 16) 940 | -9/Materials | Entered another Materials area 940 | -8/Materials | Evolved 2 slots: Propulsion x1, Utility x1 968 | -8/Materials | Identified exit to Garrison 968 | -8/Materials | Entered Garrison 1122 | -8/Garrison | Triggered checkpoint 1129 | -8/Garrison | Core integrity fell below 50% 1161 | -8/Garrison | Core integrity fell below 20% 1179 | -8/Garrison | Destroyed by G-47 Trooper with Particle Gun Last Messages --------------- 01122_ Beams of light sweep through the air. An alarm sounds. 01132_ Com. Wheel destroyed. 01132_ Critical hit (Burn: +37). 01137_ Overheating: Matter decay (-42). 01139_ Imp. Light Cannon destroyed. 01140_ Triggered Tesla Bomb Trap. 01140_ A bubble of electromagnetic force engulfs the area. 01140_ Storage Shell breached. 01142_ Imp. Light Cannon destroyed. 01143_ Com. Wheel destroyed. 01147_ Imp. Medium Laser destroyed. 01162_ Sneak attack on A-02 Transporter. 01162_ A-02 Transporter system offline. 01163_ Sneak attack on A-02 Transporter. 01163_ A-02 Transporter system offline. 01166_ Jacked G-47 Trooper... 01172_ G-47 Trooper knocked back. 01175_ Med. Laser destroyed. 01175_ Critical hit (Burn: +37). 01177_ G-47 Trooper destroyed. Map ----- +----------------------------------------------------+ | | | | | | | | | | | | | | | | | | | | | | | | | | | ?????????????????????????????????????????????????? | | ?????????????????????????????????????????????????? | | ?????????????????????????????????????????????????? | | ?????????????????????????????????????????????????? | | ?????????????????????????????????????????????????? | | ?????????????????????####????????????????????????? | | ????????????????????? ????????????????????????? | | ?????????????????????" "????????????????????????? | | ?????????????????????" "????????????????????????? | | ?????????????????????" "????#????################ | | ????????????????# """" """" #????# # | | ????????????????# a #????# # | | ????????????????# g^ %g @ gg#????# # | | ????????????????# """"g """"g#????# ############ | | ??????????????????"&& "&&"?#????# #??????????? | | ??????????????????"&& &&"?#????# #??????????? | | ????????????????# """ "" #????# #??????????? | | ????????????????# #????# #??????????? | | ????????????????#### ####????# #??????????? | | ???????????????????##### #???????# #??????????? | | ???????????????#####???# #???????# #??????????? | | ???????????????#!!!!!### #???????# #??????????? | | ???????????????#! #???????# #??????????? | | ???????????????#! #???????# #??????????? | | ???????????????#!!!!!### ###?????# #??????????? | | ???????????????#####???#% #?????# #??????????? | | ???????????????????????# #?????# #??????????? | | ???????????????????????# #?????# #??????????? | | ???????????????????????# ###?????# #??????????? | | ???????????????????????# #???????# #??????????? | | ???????????????????????# #???????# #??????????? | | ?????????????########### ######### #??????????? | | ?????????????# =%=%= % ######?????? | | ?????????????# [*=%* #?????? | | ?????????????# [%%[[ #?????? | | ?????????????# %#+###################### #?????? | | ?????????????#^ #??????????????????????# #?????? | +----------------------------------------------------+ Best States ------------- Heat Dissipation 31 Energy Generation 12 Energy Capacity 265 Matter Stores 300 Matter Capacity 300 Sight Range 16 Terrain Scan Density 10 Resistance: KI 20 Resistance: TH 20 Resistance: EX 20 Resistance: EM 20 Resistance: I 20 Resistance: S 20 Resistance: P 20 Evasion (%) 55 Targeting Accuracy 5 Offensive Hacking 10 Item Schematics ----------------- None Robot Schematics ------------------ None Fabricated ------------ Nothing Alien Tech Used ----------------- None Achievements -------------- None Challenges ------------ None Game ------ Seed DataSignalBlaster Manual? 0 Play Time 00:19:01 Cumulative 50.4 hours Start 2023.07.10 @ 23:00:36 End 2023.07.10 @ 23:19:14 Sessions 1 Manual Loads 0 Difficulty Adventurer Special Mode None Game No. 42 Rogue 13 Adventurer 29 Explorer 0 Win Type - Total 0 Types 0/0/0/0/0/0/0/0/0 Lore% 30 Gallery% 36 Achievement% 29 Wizard Run 0 Options --------- ASCII 0 Keyboard 0 Movement Mouse Keybinds 0 Fullscreen 1 Font 18/SmallcapsGlow Map View 76x50 Tactical HUD 1 Map Filters NONE Filters NONE Steam 1 RUN: 2538c792-78ef-45df-bf35-ee58744c2fee